Cogmind - Beta 10.1 @@@ ROGUE MODE // 2020.10.02 @ 11:09:40 Player: Jelly Result: Self-destructed Performance ------------- Evolutions (3) 1500 Regions Visited (10) 2000 Robots Destroyed (59) 295 Value Destroyed (2527) 2527 Prototype IDs (5) 100 Alien Tech Used (0) 0 Bonus (1860) 1860 TOTAL SCORE: 8282 Bonus ------- High Alert Combat Kills 279 Follower Combat Kills 581 Entered Garrisons 200 Used RIF Installer 500 Aligned with FarCom 300 Cogmind --------- Core Integrity 392/700 Matter 169/300 Energy 12/100 System Corruption 10% Temperature Cool (0) Movement Rolling (140) Ox4 Location -7/Factory Parts ------- > --- POWER (1) -------- (None) > --- PROPULSION (3) --- Armored Huge Wheel > --- UTILITY (7) ------ High-capacity Storage Unit High-capacity Storage Unit High-capacity Storage Unit High-capacity Storage Unit Transmission Jammer Hacking Suite Hacking Suite > --- WEAPON (2) ------- Shock Rifle Heavy Ion Cannon > --- INVENTORY (36) --- Improved Deuterium Engine Light Angular Momentum Engine Antimatter Reactor Armored Huge Wheel Armored Huge Wheel Improved Heat Sink Improved Heat Sink Improved Cooling System Large Storage Unit Compact Battery (300) Advanced Weight Redist. System Advanced Terrain Scan Processor Transmission Jammer Hardened Medium Armor Plating Improved Medium Armor Plating Reactive Plating Relay Coupler [Swarmer] (38) Relay Coupler [Brawler] (23) Relay Coupler [Duelist] (29) Relay Coupler [Sentry] (18) Relay Coupler [Sentry] (24) Relay Coupler [Hunter] (17) Relay Coupler [Hunter] (14) Skeleton Box Recalibrator Shock Rifle Heavy Missile Launcher Datajack Remote Datajack Remote Datajack Remote Datajack Spear Peak State ------------ > --- POWER ------------ Micro Nuclear Core > --- PROPULSION ------- Armored Wheel Armored Huge Wheel > --- UTILITY ---------- High-capacity Storage Unit High-capacity Storage Unit High-capacity Storage Unit High-capacity Storage Unit Hacking Suite Hacking Suite Relay Coupler [NC] > --- WEAPON ----------- Heavy Beamcaster Heavy Beamcaster > --- INVENTORY -------- Improved Deuterium Engine Light Angular Momentum Engine Antimatter Reactor Armored Huge Wheel Armored Huge Wheel Improved Heat Sink Improved Heat Sink Compact Battery Advanced Weight Redist. System Advanced Terrain Scan Processor Transmission Jammer Hardened Medium Armor Plating Improved Medium Armor Plating Reactive Plating Relay Coupler [Swarmer] Relay Coupler [Brawler] Relay Coupler [Duelist] Relay Coupler [Sentry] Relay Coupler [Sentry] Relay Coupler [Hunter] Relay Coupler [Hunter] Skeleton Box Recalibrator Advanced Beam Rifle Heavy Missile Launcher Heavy Missile Launcher Datajack Remote Datajack Remote Datajack Spear [Rating: 49] Favorites ----------- Power Light Nuclear Core Engine Improved Ion Engine Power Core Light Nuclear Core Propulsion Armored Wheel Leg Aluminum Leg Wheel Armored Wheel Utility High-capacity Storage Unit Device Transmission Jammer Storage High-capacity Storage Unit Processor Transport Network Coupler Hackware Hacking Suite Protection Propulsion Shielding Weapon Datajack Energy Gun EM Pulse Gun Energy Cannon Light EM Pulse Cannon Ballistic Gun Light Assault Rifle Launcher Grenade Launcher Special Weapon Remote Datajack Impact Weapon Heavy Flail Slashing Weapon Katana Piercing Weapon Spear Special Melee Weapon Datajack Build | -11 -10 -10 -10 -9 -8 -8 -8 -7 -7 -7 ------- Run | Scr Mat Min Exi Min Mat Sto Gar Fac Was Fac Slots Evolved 6 | . . . . . 4 . . 2 . . Power . | . . . . . . . . . . . Propulsion 1 | . . . . . 1 . . . . . Utility 5 | . . . . . 3 . . 2 . . Weapon . | . . . . . . . . . . . Parts Attached 117 | . 10 9 2 . 17 17 33 4 . 25 Power 8 | . 1 . . . 1 2 2 . . 2 Engine 3 | . 1 . . . . 1 . . . 1 Core 5 | . . . . . 1 1 2 . . 1 Reactor . | . . . . . . . . . . . Propulsion 9 | . . 1 . . 4 1 2 . . 1 Treads . | . . . . . . . . . . . Leg 2 | . . 1 . . 1 . . . . . Wheel 7 | . . . . . 3 1 2 . . 1 Hover . | . . . . . . . . . . . Flight . | . . . . . . . . . . . Utility 28 | . 5 1 2 . 7 1 2 3 . 7 Device 10 | . . . 2 . 2 1 2 1 . 2 Storage 7 | . 3 . . . 3 . . . . 1 Processor 1 | . 1 . . . . . . . . . Hackware 5 | . . . . . 1 . . . . 4 Protection 5 | . 1 1 . . 1 . . 2 . . Artifact . | . . . . . . . . . . . Weapon 72 | . 4 7 . . 5 13 27 1 . 15 Energy Gun 27 | . 2 3 . . . 5 10 . . 7 Energy Cannon 2 | . . . . . 1 . . . . 1 Ballistic Gun 2 | . . 1 . . 1 . . . . . Ballistic Cannon . | . . . . . . . . . . . Launcher 7 | . 1 1 . . . 1 3 . . 1 Special Weapon 4 | . 1 1 . . . . . . . 2 Impact Weapon 3 | . . 1 . . 1 1 . . . . Slashing Weapon 12 | . . . . . . 5 6 1 . . Piercing Weapon 4 | . . . . . . . . . . 4 Special Melee Weapon 11 | . . . . . 2 1 8 . . . Unidentified Prototypes 5 | . . . 1 . . 1 3 . . . Parts Lost 15 | . . 1 . . . 3 1 . . 10 Power 2 | . . . . . . 1 . . . 1 Propulsion 5 | . . . . . . 2 1 . . 2 Utility 2 | . . . . . . . . . . 2 Weapon 6 | . . 1 . . . . . . . 5 Highest Loss Streak 3 | . . 1 . . . 1 1 . . 3 Average Slot Usage (%) 96 | . 95 100 100 100 97 99 99 92 100 91 Engine 5 | . 13 14 14 14 2 5 . . . 2 Core 4 | . . . . . 6 3 9 7 7 4 Leg 7 | . 28 28 28 28 1 . . . . . Wheel 16 | . . . . . 25 26 26 23 23 17 Device 7 | . . . 3 14 12 9 9 7 15 6 Storage 23 | . 16 18 14 14 17 27 27 23 23 28 Hackware 8 | . . . . . 8 9 9 7 7 15 Protection 3 | . . 9 10 . 5 . . 7 7 1 Energy Gun 7 | . 19 5 14 14 2 9 14 6 . 2 Ballistic Gun 3 | . 7 8 14 14 4 . . . . . Slashing Weapon 1 | . . . . . . 5 1 1 7 1 Piercing Weapon 1 | . . . . . . . . . . 5 Special Melee Weapon 2 | . . . . . 6 1 2 7 7 1 Naked Turns . | . . . . . . . . . . . Heaviest Build 146 | 10 51 51 44 44 109 111 110 113 113 146 Greatest Support 40 | 20 20 20 20 20 36 36 36 36 36 40 Greatest Overweight (x) 4 | . 2 2 2 2 4 4 3 3 3 4 Average Overweight (x) 2 | . . 2 2 2 1 2 2 2 3 3 Largest Inventory Capacity 36 | . 16 16 12 12 28 28 28 28 28 36 Average Capacity 24 | . 8 13 12 12 19 28 28 28 28 34 Most Carried 35 | . 10 11 12 11 23 28 28 28 28 35 Average Carried 22 | . 6 10 10 11 16 25 27 26 26 31 Final Capacity 36 | 6 16 12 12 12 28 28 28 28 28 36 Final Carried 34 | 6 10 11 11 11 23 28 28 26 28 34 Class Distribution -------------------- 40% | Bothacker-Mutant 29% | Hauler-Mutant 25% | Mutant 4% | Commander-Mutant Dominant Class ---------------- Mutant | -10/Materials Mutant | -10/Mines Mutant | -10/Exiles Mutant | -9/Mines Hauler-Mutant | -8/Materials Hauler-Mutant | -8/Storage Hauler-Mutant | -8/Garrison Bothacker-Mutant | -7/Factory Bothacker-Mutant | -7/Waste Bothacker-Mutant | -7/Factory Resources | -11 -10 -10 -10 -9 -8 -8 -8 -7 -7 -7 ----------- Run | Scr Mat Min Exi Min Mat Sto Gar Fac Was Fac Matter Collected 1636 | 200 . 194 . 53 296 247 319 . 140 187 Remotely . | . . . . . . . . . . . Salvage Created 2019 | . 68 194 . . 281 207 678 . . 591 Parts 128 | . 12 11 . . 17 17 38 . . 33 Haulers Intercepted 1 | . 1 . . . . . . . . . Recyclers Shooed . | . . . . . . . . . . . Parts Field Recycled . | . . . . . . . . . . . Retrieved Matter . | . . . . . . . . . . . Parts Self-Destructed . | . . . . . . . . . . . Prevented . | . . . . . . . . . . . Kills | -11 -10 -10 -10 -9 -8 -8 -8 -7 -7 -7 ------- Run | Scr Mat Min Exi Min Mat Sto Gar Fac Was Fac Combat Hostiles Destroyed 51 | . 3 5 . . 5 5 23 . . 10 Melee 6 | . . 1 . . . . . . . 5 Guns 26 | . 1 . . . 3 3 15 . . 4 Cannons 2 | . . . . . 2 . . . . . AOE 16 | . 2 3 . . . 2 8 . . 1 Classes Destroyed 11 | . 2 2 . . 3 2 1 . . 1 Worker 3 | . . . . . . 1 . . . 2 Builder 1 | . . . . . . 1 . . . . Hauler 1 | . 1 . . . . . . . . . Recycler 3 | . . 1 . . . . . . . 2 Swarmer 17 | . 3 3 . . . . 10 . . 1 Grunt 17 | . . 2 . . . 3 9 . . 3 Brawler 1 | . . . . . 1 . . . . . Duelist 2 | . . . . . . . 2 . . . Sentry 9 | . . . . . 3 2 2 . . 2 Hunter 2 | . . . . . 1 . . . . 1 Programmer 3 | . . . . . . . . . . 3 Best Kill Streak 9 | . 3 3 . . 2 6 9 . . 3 Combat Bots Only 9 | . 3 3 . . 2 4 9 . . 2 Max Kills in Single Turn 3 | . 2 3 . . 1 2 3 . . 1 Gunslinging 1 | . . . . . . 1 . . . . Exploded 3 | . 2 3 . . . 2 3 . . 1 Melee 1 | . . 1 . . . . . . . 1 Uniques/NPCs Destroyed . | . . . . . . . . . . . Combat | -11 -10 -10 -10 -9 -8 -8 -8 -7 -7 -7 -------- Run | Scr Mat Min Exi Min Mat Sto Gar Fac Was Fac Damage Taken 3630 | . 70 247 . . 164 603 777 . . 1769 Core 677 | . 46 55 . . 50 96 122 . . 308 Absorbed by Shields . | . . . . . . . . . . . Core Remaining (%) 70 | 100 . . . 59 . . 51 . . . Volleys Fired 118 | . 8 5 . . 15 10 52 . . 28 Largest 2 | . 2 2 . . 2 2 2 . . 2 Hottest 162 | . 100 100 . . 79 126 122 . . 162 Shots Fired 204 | . 12 9 . . 30 16 96 . . 41 Gun 173 | . 8 8 . . 27 12 90 . . 28 Cannon 6 | . . . . . 3 . . . . 3 Launcher 19 | . 3 1 . . . 4 6 . . 5 Special 6 | . 1 . . . . . . . . 5 Kinetic 17 | . 2 . . . 15 . . . . . Thermal 124 | . 7 8 . . . 12 68 . . 29 Explosive 19 | . 3 1 . . . 4 6 . . 5 Electromagnetic 39 | . . . . . 15 . 22 . . 2 Robot Hit Streak 21 | . 4 10 . . 15 21 11 . . 19 Robot Miss Streak 3 | . 1 . . . 2 1 3 . . 1 Penetration Max . | . . . . . . . . . . . Secondary Targets 5 | . . . . . . 1 4 . . . Max Gunslinging Chain 1 | . . . . . . 1 1 . . . Shots Hit Robots 188 | . 6 14 . . 34 16 65 . . 53 Core Hits 109 | . 6 7 . . 13 16 44 . . 23 Critical Hits 3 | . . . . . . . 2 . . 1 Critical Kills 2 | . . . . . . . 1 . . 1 Critical Parts Destroyed 1 | . . . . . . . 1 . . . Melee Attacks 112 | . . 7 . . 12 25 4 2 . 62 Impact 11 | . . 7 . . 2 2 . . . . Slashing 27 | . . . . . . 22 1 2 . 2 Piercing 60 | . . . . . . . . . . 60 Sneak Attacks 17 | . . 2 . . 9 2 . . . 4 Combat Hostiles . | . . . . . . . . . . . Follow-up Attacks . | . . . . . . . . . . . Damage Inflicted 4616 | . 124 373 . . 305 627 1628 . . 1559 Guns 2119 | . 56 102 . . 247 209 995 . . 510 Cannons 122 | . . . . . 58 . . . . 64 Explosions 1301 | . 68 69 . . . 321 633 . . 210 Melee 1074 | . . 202 . . . 97 . . . 775 Ramming . | . . . . . . . . . . . Kinetic 116 | . 17 . . . 99 . . . . . Thermal 1733 | . 39 102 . . . 209 815 . . 568 Explosive 1181 | . 68 69 . . . 321 513 . . 210 Electromagnetic 512 | . . . . . 206 . 300 . . 6 Impact 202 | . . 202 . . . . . . . . Slashing 97 | . . . . . . 97 . . . . Piercing 775 | . . . . . . . . . . 775 Highest Corruption 10 | . . . . . . . . . . 10 Average Corruption 5 | . . . . . . . . . . 5 Corruption Purged . | . . . . . . . . . . . Effects 12 | . . . . . . . . . . 12 Message Errors 3 | . . . . . . . . . . 3 Matter Fused 2 | . . . . . . . . . . 2 Heat Flow Errors 1 | . . . . . . . . . . 1 Energy Discharges 2 | . . . . . . . . . . 2 Parts Rejected 1 | . . . . . . . . . . 1 Data Loss (minor) 1 | . . . . . . . . . . 1 Targeting Errors 1 | . . . . . . . . . . 1 Weapon Failures 1 | . . . . . . . . . . 1 Overload Shots . | . . . . . . . . . . . Overflow Damage 96 | . . 80 . . . . 8 . . 8 Projectiles . | . . . . . . . . . . . Explosions 8 | . . . . . . . 8 . . . Melee 88 | . . 80 . . . . . . . 8 Knockbacks 1 | . . 1 . . . . . . . . Impact 1 | . . 1 . . . . . . . . Kinetic . | . . . . . . . . . . . Secondary . | . . . . . . . . . . . Self-Inflicted Damage 222 | . 31 21 . . . 17 44 . . 109 Shots 10 | . 1 1 . . . 2 2 . . 4 Rammed . | . . . . . . . . . . . Targets Rammed . | . . . . . . . . . . . Kicked . | . . . . . . . . . . . Crushed . | . . . . . . . . . . . Highest Temperature 378 | . 78 228 . . 75 198 73 . . 378 Average Temperature 61 | . 30 117 . . 17 82 31 . . 99 Received Heat Transfer 1047 | . . 114 . . 27 270 279 . . 357 Effects 2 | . . . . . . . . . . 2 Energy Bleed 2 | . . . . . . . . . . 2 Siege Activations . | . . . . . . . . . . . Robots Corrupted . | . . . . . . . . . . . Combat Hostiles . | . . . . . . . . . . . Parts Fried 1 | . . . . . 1 . . . . . Impact Corruptions 3 | . . 3 . . . . . . . . Robots Melted 1 | . . 1 . . . . . . . . Combat Hostiles 1 | . . 1 . . . . . . . . Parts Melted 4 | . . 1 . . . 1 2 . . . Heat Transferred 3256 | . 111 296 . . . 444 1554 . . 851 Parts Sabotaged . | . . . . . . . . . . . Parts Stolen . | . . . . . . . . . . . Parts Stripped . | . . . . . . . . . . . Power Chain Reactions 1 | . . . . . . . 1 . . . Missiles Intercepted . | . . . . . . . . . . . Alert | -11 -10 -10 -10 -9 -8 -8 -8 -7 -7 -7 ------- Run | Scr Mat Min Exi Min Mat Sto Gar Fac Was Fac Peak Influence 1128 | . 119 152 . 139 301 499 1128 637 222 201 Initial 592 | . . 7 . . 53 51 265 592 222 155 Average 221 | . 52 115 . 56 126 173 839 607 222 81 Maximum Alert Level 4 | . . . . . 1 2 4 2 1 1 Low Security (%) 69 | . 100 100 . 100 78 60 . . . 92 Level 1 13 | . . . . . 21 31 10 . 100 7 Level 2 6 | . . . . . . 8 13 100 . . Level 3 6 | . . . . . . . 51 . . . Level 4 3 | . . . . . . . 24 . . . Level 5 . | . . . . . . . . . . . High Security . | . . . . . . . . . . . Max Security . | . . . . . . . . . . . Squads Dispatched 12 | . . . . . 1 4 . . . 7 Investigation 2 | . . . . . . 1 . . . 1 Extermination 4 | . . . . . . . . . . 4 Reinforcement 4 | . . . . . 1 1 . . . 2 Assault . | . . . . . . . . . . . Garrison 2 | . . . . . . 2 . . . . Intercept . | . . . . . . . . . . . Construction Impeded . | . . . . . . . . . . . Haulers Reinforced . | . . . . . . . . . . . Stealth | -11 -10 -10 -10 -9 -8 -8 -8 -7 -7 -7 --------- Run | Scr Mat Min Exi Min Mat Sto Gar Fac Was Fac Distress Signals 7 | . . . . . 2 2 . . . 3 Communications Jammed 4 | . . . . . . . . . . 4 Distress Signals 4 | . . . . . . . . . . 4 Times Spotted 115 | . 5 5 . . 17 23 33 1 . 31 Peak Tracking Total 7 | . 3 2 . . 4 5 7 2 . 3 Tactical Retreats 18 | . . . . . 1 2 10 . . 5 Traps | -11 -10 -10 -10 -9 -8 -8 -8 -7 -7 -7 ------- Run | Scr Mat Min Exi Min Mat Sto Gar Fac Was Fac Traps Triggered 7 | . . . . . . 1 5 1 . . Indirectly . | . . . . . . . . . . . Trap Hack Attempts 16 | . . . . . . . 16 . . . Triggered 1 | . . . . . . . 1 . . . Disarmed . | . . . . . . . . . . . Reprogrammed 3 | . . . . . . . 3 . . . Reused 1 | . . . . . . . 1 . . . Traps Extracted . | . . . . . . . . . . . Installed . | . . . . . . . . . . . Triggered 1 | . . . . . . . 1 . . . Machines | -11 -10 -10 -10 -9 -8 -8 -8 -7 -7 -7 ---------- Run | Scr Mat Min Exi Min Mat Sto Gar Fac Was Fac Machines Disabled 11 | . . 1 . . 1 5 3 . . 1 Max in Single Turn 1 | . . 1 . . . 1 1 . . 1 Garrison Relay 3 | . . . . . . . 3 . . . Machines Sabotaged . | . . . . . . . . . . . Garrisons Compromised . | . . . . . . . . . . . Overloaded Fab Kills . | . . . . . . . . . . . Fab Network Shutdowns . | . . . . . . . . . . . Hacking | -11 -10 -10 -10 -9 -8 -8 -8 -7 -7 -7 --------- Run | Scr Mat Min Exi Min Mat Sto Gar Fac Was Fac Machines Accessed 39 | . 6 . 3 . 6 8 . 2 . 14 Terminals 34 | . 6 . . . 6 7 . 2 . 13 Fabricators . | . . . . . . . . . . . Repair Stations 1 | . . . . . . . . . . 1 Recycling Units . | . . . . . . . . . . . Scanalyzers . | . . . . . . . . . . . Garrison Access 1 | . . . . . . 1 . . . . Total Hacks 155 | . 20 . 19 . 25 34 . 11 . 46 Successful 110 | . 14 . 19 . 15 24 . 7 . 31 Failed 45 | . 6 . . . 10 10 . 4 . 15 Catastrophic 5 | . . . . . 1 . . 1 . 3 Database Lockouts . | . . . . . . . . . . . Manual 119 | . 18 . 2 . 21 28 . 11 . 39 Terminals 133 | . 20 . . . 25 33 . 11 . 44 Fabricators . | . . . . . . . . . . . Repair Stations 2 | . . . . . . . . . . 2 Recycling Units . | . . . . . . . . . . . Scanalyzers . | . . . . . . . . . . . Garrison Access 1 | . . . . . . 1 . . . . Terminal Hacks 61 | . 5 . 19 . 8 12 . 4 . 13 Record 22 | . . . 19 . 1 . . . . 2 Part Schematic 1 | . 1 . . . . . . . . . Robot Analysis 2 | . 1 . . . . . . . . 1 Open Door 1 | . . . . . . 1 . . . . Level Access Points 1 | . . . . . . 1 . . . . Branch Access Points 5 | . 1 . . . 1 1 . 1 . 1 Emergency Access Points 5 | . . . . . 2 1 . 1 . 1 Terminal Index 1 | . . . . . . . . . . 1 Alert Level 1 | . . . . . . 1 . . . . Unreport Threat 1 | . . . . . . 1 . . . . Locate Traps 10 | . 1 . . . 2 2 . 1 . 4 Zone Layout 11 | . 1 . . . 2 4 . 1 . 3 Fabricator Hacks . | . . . . . . . . . . . Repair Station Hacks 1 | . . . . . . . . . . 1 Scan Component 1 | . . . . . . . . . . 1 Recycling Unit Hacks . | . . . . . . . . . . . Scanalyzer . | . . . . . . . . . . . Garrison Access Hacks 1 | . . . . . . 1 . . . . Unlock Access 1 | . . . . . . 1 . . . . Unauthorized Hacks 47 | . 9 . . . 7 11 . 3 . 17 Terminals 47 | . 9 . . . 7 11 . 3 . 17 Track 4 | . 1 . . . . 2 . . . 1 Assimilate 5 | . 1 . . . . . . . . 4 Botnet 30 | . 5 . . . 6 6 . 2 . 11 Operators 8 | . 2 . . . 1 3 . 1 . 1 Fabricators . | . . . . . . . . . . . Repair Stations . | . . . . . . . . . . . Recycling Units . | . . . . . . . . . . . Scanalyzers . | . . . . . . . . . . . Garrison Access . | . . . . . . . . . . . Data Cores Recovered 2 | . . . . . 1 1 . . . . Used 1 | . . . . . 1 . . . . . Hacking Detections 31 | . 3 . . . 6 6 . 2 . 14 Full Trace Events 1 | . . . . . . . . . . 1 Feedback Events 1 | . . . . . . . . . . 1 Hackware Fried 1 | . . . . . . . . . . 1 Feedback Blocked . | . . . . . . . . . . . Robot Schematics Acquired . | . . . . . . . . . . . Robots Built . | . . . . . . . . . . . Matter . | . . . . . . . . . . . Time . | . . . . . . . . . . . Total Robot Build Rating . | . . . . . . . . . . . Part Schematics Acquired 1 | . 1 . . . . . . . . . Parts Built . | . . . . . . . . . . . Matter . | . . . . . . . . . . . Time . | . . . . . . . . . . . Total Part Build Rating . | . . . . . . . . . . . Parts Repaired . | . . . . . . . . . . . Time . | . . . . . . . . . . . Parts Recycled . | . . . . . . . . . . . Recycled Matter . | . . . . . . . . . . . Retrieved Matter . | . . . . . . . . . . . Retrieved Components . | . . . . . . . . . . . Parts Scanalyzed . | . . . . . . . . . . . Part Schematics Acquired . | . . . . . . . . . . . Parts Damaged . | . . . . . . . . . . . Bothacking | -11 -10 -10 -10 -9 -8 -8 -8 -7 -7 -7 ------------ Run | Scr Mat Min Exi Min Mat Sto Gar Fac Was Fac Used RIF Installer 1 | . . . . . . . 1 . . . Robots Hacked 8 | . . . . . 6 . . . . 2 Non-combat 7 | . . . . . 6 . . . . 1 Combat 1 | . . . . . . . . . . 1 Robot Hacks Applied 9 | . . . . . 7 . . . . 2 parse_system 4 | . . . . . 4 . . . . . no_distress 1 | . . . . . 1 . . . . . find_recycling 1 | . . . . . 1 . . . . . check_alert 1 | . . . . . 1 . . . . . formatsys_low 1 | . . . . . . . . . . 1 formatsys_high 1 | . . . . . . . . . . 1 Relay Couplers Released 9 | . . . . . . . 9 . . . Machine Destruction 9 | . . . . . . . 9 . . . Attached 2 | . . . . . . . . . . 2 Robots Rewired 1 | . . . . . . 1 . . . . Allies Hacked 1 | . . . . . . . . . . 1 Hacks Repelled . | . . . . . . . . . . . Allies | -11 -10 -10 -10 -9 -8 -8 -8 -7 -7 -7 -------- Run | Scr Mat Min Exi Min Mat Sto Gar Fac Was Fac Total Allies 19 | . 1 . . 3 . 10 . . . 5 Largest Group 10 | . 1 1 1 4 3 10 . . . 2 Highest-Rated Group 173 | . 10 10 10 50 42 173 . . . 36 Highest-Rated Ally 29 | . 10 10 10 16 16 29 . . . 26 Total Orders 4 | . . . . . . 4 . . . . ROAM 1 | . . . . . . 1 . . . . FOLLOW 2 | . . . . . . 2 . . . . AID 1 | . . . . . . 1 . . . . Ally Attacks 159 | . . . . 11 42 101 . . . 5 Total Damage 2075 | . . . . 133 455 1407 . . . 80 Kills 30 | . . . . 6 7 17 . . . . Allies Corrupted . | . . . . . . . . . . . Allies Melted . | . . . . . . . . . . . Intel | -11 -10 -10 -10 -9 -8 -8 -8 -7 -7 -7 ------- Run | Scr Mat Min Exi Min Mat Sto Gar Fac Was Fac Robot Analysis Total 2 | . 1 . . . . . . . . 1 Derelict Logs Recovered . | . . . . . . . . . . . Drone Launches . | . . . . . . . . . . . Drone Recoveries . | . . . . . . . . . . . Exploration | -11 -10 -10 -10 -9 -8 -8 -8 -7 -7 -7 ------------- Run | Scr Mat Min Exi Min Mat Sto Gar Fac Was Fac Turns Passed 7113 | . 478 398 631 247 1007 653 833 280 229 2357 Spaces Moved 4379 | 1 328 195 347 126 600 386 454 230 185 1527 Core . | . . . . . . . . . . . Treads . | . . . . . . . . . . . Legs 1019 | 1 328 195 347 126 22 . . . . . Wheels 3360 | . . . . . 578 386 454 230 185 1527 Hover . | . . . . . . . . . . . Flight . | . . . . . . . . . . . Fastest Speed 100 | 120 120 180 180 180 100 110 110 110 120 120 Average Speed 129 | 120 125 180 180 180 110 116 111 115 120 126 Slowest Speed 240 | 120 180 180 180 180 240 130 120 120 120 140 Overloaded Moves . | . . . . . . . . . . . Propulsion Burnouts . | . . . . . . . . . . . Robots Hopped . | . . . . . . . . . . . Cave-ins Triggered 1 | . . . . . . . . . . 1 Exploration Rate (%) 49 | 2 61 51 72 31 46 60 80 11 89 37 Regions Visited 10 Branch Regions 4 Pre-discovered Areas 2 | . . . 1 1 . . . . . . Known Exits Taken 3 | . 1 . . . 1 1 . . . . Unknown Exits Taken 4 | 1 . 1 1 1 . . . . . . Scrap Searched 1 | . . . . 1 . . . . . . Spaces Dug 34 | . 1 . . . 2 7 . 2 . 22 Terrain Destroyed 140 | . 17 2 . . 2 31 37 2 . 49 Melee 25 | . . . . . 2 7 . 2 . 14 Projectile 2 | . 1 . . . . . . . . 1 AOE 113 | . 16 2 . . . 24 37 . . 34 Terrain Rammed . | . . . . . . . . . . . Walls Destroyed . | . . . . . . . . . . . Machines Disabled . | . . . . . . . . . . . Actions | -11 -10 -10 -10 -9 -8 -8 -8 -7 -7 -7 --------- Run | Scr Mat Min Exi Min Mat Sto Gar Fac Was Fac Total 5463 | . 380 219 355 147 912 521 678 242 194 1815 Wait 484 | . 18 1 . 22 203 66 39 . . 135 Move 4369 | . 327 194 346 125 599 385 452 230 184 1527 Hop . | . . . . . . . . . . . Pick Up 109 | . 7 2 3 . 36 11 19 2 6 23 Fast Attach 18 | . 5 . . . 6 2 . 2 . 3 Attach 20 | . . 1 1 . 3 4 2 . . 9 Detach 11 | . 3 . 1 . 3 2 . . . 2 Swap 79 | . 5 8 1 . 8 11 31 2 . 13 Drop 84 | . 7 1 3 . 27 5 20 4 4 13 Fire 118 | . 8 5 . . 15 10 52 . . 28 Melee 112 | . . 7 . . 12 25 4 2 . 62 Ram . | . . . . . . . . . . . Kick . | . . . . . . . . . . . Crush . | . . . . . . . . . . . Escape Stasis 41 | . . . . . . . 41 . . . Rewire 2 | . . . . . . . 2 . . . Trap 16 | . . . . . . . 16 . . . Miscellaneous . | . . . . . . . . . . . Route ------- -11/Scrapyard -10/Materials (discovered 4 exits: [*Mat x2] / *Min x2) -10/Mines (discovered 3 exits: [*Mat x2] / *Exi) -10/Exiles -9/Mines -8/Materials (discovered 2 exits: *Sto x2) -8/Storage (discovered 3 exits: Fac / Rec / Gar) -8/Garrison (discovered 3 exits: *Fac x3) -7/Factory (discovered 2 exits: Low x2) -7/Waste -7/Factory (discovered 4 exits: [*Fac x2] / *Low x2) History --------- Turn | Location | Event 1 | -11/Scrapyard | Discovered new exit (range 0) 1 | -11/Scrapyard | Entered Materials 66 | -10/Materials | Identified exit to Mines 246 | -10/Materials | Discovered new exit (range 12) 309 | -10/Materials | Build established: Mutant 309 | -10/Materials | Discovered new exit (range 11) 479 | -10/Materials | Entered Mines 479 | -10/Mines | Accompanied by 1 ally 533 | -10/Mines | Discovered new exit (range 7) 746 | -10/Mines | Discovered new exit (range 13) 868 | -10/Mines | Deemed a non-threat by the Exiles lab entrance 869 | -10/Mines | Discovered new exit (range 5) 877 | -10/Mines | Entered Exiles 877 | -10/Exiles | Accompanied by 1 ally 924 | -10/Exiles | Met 8R-AWN 955 | -10/Exiles | Met EX-HEX 1061 | -10/Exiles | Met EX-DEC 1162 | -10/Exiles | Learned location of Zion (-6) 1212 | -10/Exiles | Met EX-BIN 1237 | -10/Exiles | Aligned with FarCom system 1239 | -10/Exiles | Given EX-Vault access code 1318 | -10/Exiles | Opened EX-Vault 1326 | -10/Exiles | Found Prototype Device 1336 | -10/Exiles | Identified Skeleton Box 1364 | -10/Exiles | Warned to stay clear of 0b10 Research branches 1492 | -10/Exiles | Discovered new exit (range 11) 1508 | -10/Exiles | Left Exiles lab with Skeleton Box 1508 | -10/Exiles | Entered Mines 1508 | -9/Mines | Accompanied by 1 ally 1509 | -9/Mines | Learned location of Storage (-8) 1573 | -9/Mines | Assisted by bots powering up and referring to "LRC-V3" 1737 | -9/Mines | Discovered new exit (range 12) 1755 | -9/Mines | Entered Materials 1755 | -8/Materials | Accompanied by 3 allies 1755 | -8/Materials | Evolved 4 slots: Propulsion x1, Utility x3 1816 | -8/Materials | Identified exit to Storage 2224 | -8/Materials | Build established: Hauler-Mutant 2762 | -8/Materials | Entered Storage 2980 | -8/Storage | Identified exit to Recycling 3092 | -8/Storage | Identified exit to Factory 3172 | -8/Storage | Assisted by bots powering up and referring to "LRC-V3" 3306 | -8/Storage | Garrison activated, responded to threat 3400 | -8/Storage | Identified exit to Garrison 3415 | -8/Storage | Entered Garrison 3452 | -8/Garrison | Triggered checkpoint 3496 | -8/Garrison | Garrison Relay disabled 3589 | -8/Garrison | Destroyed 9 combat bots 3604 | -8/Garrison | Triggered checkpoint 3746 | -8/Garrison | Discovered exit to Factory (range 10) 3796 | -8/Garrison | Triggered checkpoint 3830 | -8/Garrison | Garrison Relay disabled 3951 | -8/Garrison | Discovered exit to Factory (range 8) 3994 | -8/Garrison | Triggered checkpoint 4044 | -8/Garrison | Garrison Relay disabled 4126 | -8/Garrison | Triggered checkpoint 4148 | -8/Garrison | Triggered checkpoint 4211 | -8/Garrison | Discovered exit to Factory (range 10) 4226 | -8/Garrison | Installed Relay Interface Framework 4248 | -8/Garrison | Entered Factory 4248 | -7/Factory | Evolved 2 slots: Utility x2 4459 | -7/Factory | Identified exit to Lower Caves 4523 | -7/Factory | Build established: Bothacker-Mutant 4528 | -7/Factory | Sucked down chute 4528 | -7/Factory | Entered Waste 4528 | -7/Waste | The area was eerily silent 4739 | -7/Waste | Discovered new exit (range 15) 4757 | -7/Waste | Entered Factory 5289 | -7/Factory | Discovered exit to Lower Caves (range 16) 5468 | -7/Factory | System Shield fried by hacking feedback 6526 | -7/Factory | Lost 3 parts (1n2w) 6548 | -7/Factory | Discovered new exit (range 15) 6783 | -7/Factory | Crushed by falling debris 6885 | -7/Factory | Discovered new exit (range 14) 7100 | -7/Factory | System corruption reached 10% 7103 | -7/Factory | P-60 Hacker assimilated allied Administrator 4b 7114 | -7/Factory | Self-destructed Last Messages --------------- System interface override in place. >>Trojan(Botnet) Trojan loaded successfully. Testing... Terminal linked with 10 systems. Awaiting botnet instructions. 07007_ ALERT: Rogue bot located, Programmers report to Factory Zone 3E. 07021_ :NS25IY02AADY/QO5RTQH0WW|%OV/ 07022_ O-24 Administrator: "IFF HANDSHAKE FAILED. SECURING TERMINAL." 07023_ Technician 4a reveals location of Blade Trap. 07047_ Acquired Hvy. Ion Cannon. 07065_ MNKWZMI%95&TA#HQ0/VCG=OCGWZ 07080_ C,T0ZQHXVMJ QHZ>W9IMYW CUY0 07093_ P-60 Hacker fails to hack Administrator 4b. 07095_ Mic. Nuclear Core destroyed. 07098_ System corrupted: Shock Rifle failed to cycle. 07098_ P-60 Hacker fails to hack Administrator 4b. 07099_ System corrupted: Energy discharge (-31). 07103_ P-60 Hacker hacks Administrator 4b, assimilated. 07104_ P-60 Hacker hacks Technician 4a, rebooting. Map ----- +----------------------------------------------------+ | " # #########+#############+##### """" """" # | | " # ! #### # | | " + + ! # | | " # ################# | | " ##+#####+######## #### ## #???????????????# | | # ? ?#?????# #??# ## ##??????????????## | | #### ?#######+####+## #???????????????? | | # ! ?# ## ################# | | # #?????????????# | | "" # ] #?????????????# ########+##+##### | | "" # ] #?????????????# ## #?? | | "" # [ #?????????????# ## """"""""" #?? | | "" # #????????????## ## #?? | | "" ###########????????????# + """"""""" #?? | | "" #????????????????????o?# # #?? | | #??????????????????????# # """"""""" #?? | | #??????????????????????# + #?? | | #??????????????????????+ # """"""""" #?? | | #??????????????????????# # #?? | | #?????????############## # """"""""" #?? | | ####?????????# # # #?? | | ?????????????# """ """ #^^ ^^^^# #?? | | ?????????????# """ """ # ##/####+######?? | | ?????????????# """ """ # ## #??# ???????? | | ?????????????# # o ##+####+######?? | | ?????????????# """ """@# # #?? | | ?????????????# """ """ p # """"" #?? | | ?????????????# """ """ # # """T"" #?? | | ?????????????# # # "" #?? | | ?????????????# # #[ #?? | | ?????????????# "F"" # # #?? | | ?????????????# """" # u # #?? | | ?????????????########+##### # #?? | | ????????????????????# ##### # """ """ #?? | | ????????????????????# # """ """ #?? | | ?????????????########+##### + """ """ #?? | | ?????????????# # # #?? | | ?????????????# # ##############?? | | ?????????????# """" """" # #??????????????? | | ?????????????# """" """" # #??????????????? | | ?????????????# """" """" # #??????????????? | | ?????????????? """" """" # #??????????????? | | ???????????????"""" """" # #??????????????? | | ????????????????""" """" # #??????????????? | | ????????????????? ?? + +??????????????? | | ?????????????????! ??! # #??????????????? | | ????????????????? ?? # #??????????????? | | ????????????????? ?? # #??????????????? | | ??????????????????#???##### #??????????????? | | ??????????????????????????? ???????????????? | +----------------------------------------------------+ Best States ------------- Heat Dissipation 48 Energy Generation 15 Energy Capacity 265 Matter Stores 300 Matter Capacity 300 Sight Range 16 Terrain Scan Density 10 Jamming Range 8 Armor Coverage 225 Propulsion Shielding 33 Utility Shielding 33 Evasion (%) 40 Offensive Hacking 20 Defensive Hacking 10 Relay Coupler Types 24 Relay Coupler Value 1 Item Schematics ----------------- Hcp. Storage Unit | -10/Materials | Hacked Robot Schematics ------------------ None Fabricated ------------ Nothing Alien Tech Used ----------------- None Achievements -------------- Assimilation Complete Dynamic Key Hehehe Packrat Challenges ------------ None Game ------ Seed TargetingArmoredBattery Manual? 0 Play Time 02:10:06 Cumulative 20.0 hours Start 2020.10.01 @ 13:01:43 End 2020.10.02 @ 11:09:40 Sessions 11 Manual Loads 0 Difficulty Rogue Special Mode None Game No. 27 Rogue 27 Adventurer 0 Explorer 0 Win Type - Total 0 Types 0/0/0/0/0/0/0/0/0 Lore% 20 Gallery% 23 Achievement% 19 Wizard Run 0 Options --------- ASCII 0 Keyboard 1 Movement Numpad Keybinds 0 Fullscreen 1 Font 18/SmallcapsGlow Map View 76x50 Tactical HUD 1 Map Filters NONE Filters NONE Steam 1 RUN: 55d52d5a-147b-4c88-bb4c-7cb4809580e6